[Event "Titled Tuesday Blitz August 17 2021"]
[White "Terry, Renato"]
[Black "Weetik, Vjacheslav"]
[WhiteFideId "3803457"]
[BlackFideId "4153472"]
[WhiteElo "2581"]
[BlackElo "2469"]
[Result "0-1"]
[Round "07"]
[TimeControl "180+1"]
[Date "2021.08.17"]
[WhiteClock "0:00:01"]
[BlackClock "0:00:02"]

1. e4 {[%clk 0:03:00]}  c6 {[%clk 0:02:59]} 2. Nf3 {[%clk 0:02:59]}  d5 {[%clk 0:03:00]} 3. exd5 {[%clk 0:03:00]}  cxd5 {[%clk 0:03:00]} 4. Ne5 {[%clk 0:03:00]}  Nf6 {[%clk 0:03:00]} 5. d4 {[%clk 0:03:01]}  g6 {[%clk 0:02:58]} 6. c3 {[%clk 0:03:01]}  Bg7 {[%clk 0:02:58]} 7. Bd3 {[%clk 0:03:02]}  Nfd7 {[%clk 0:02:55]} 8. f4 {[%clk 0:02:56]}  O-O {[%clk 0:02:53]} 9. O-O {[%clk 0:02:54]}  Nc6 {[%clk 0:02:52]} 10. Qf3 {[%clk 0:02:48]}  Ndxe5 {[%clk 0:02:46]} 11. fxe5 {[%clk 0:02:48]}  f6 {[%clk 0:02:47]} 12. exf6 {[%clk 0:02:48]}  Rxf6 {[%clk 0:02:43]} 13. Qe2 {[%clk 0:02:48]}  e5 {[%clk 0:02:30]} 14. dxe5 {[%clk 0:02:39]}  Nxe5 {[%clk 0:02:26]} 15. Be3 {[%clk 0:02:02]}  Rxf1+ {[%clk 0:02:04]} 16. Qxf1 {[%clk 0:02:02]}  Ng4 {[%clk 0:02:03]} 17. Qf3 {[%clk 0:01:29]}  Nxe3 {[%clk 0:01:46]} 18. Qxe3 {[%clk 0:01:29]}  d4 {[%clk 0:01:45]} 19. Qe2 {[%clk 0:01:27]}  dxc3 {[%clk 0:01:23]} 20. Nxc3 {[%clk 0:01:28]}  Qd4+ {[%clk 0:01:22]} 21. Kh1 {[%clk 0:01:26]}  Bg4 {[%clk 0:01:23]} 22. Qc2 {[%clk 0:01:05]}  Rd8 {[%clk 0:01:18]} 23. Be2 {[%clk 0:00:49]}  Bf5 {[%clk 0:01:12]} 24. Qb3+ {[%clk 0:00:48]}  Kh8 {[%clk 0:01:10]} 25. Qxb7 {[%clk 0:00:46]}  Qe3 {[%clk 0:00:34]} 26. Qf3 {[%clk 0:00:33]}  Qxf3 {[%clk 0:00:30]} 27. Bxf3 {[%clk 0:00:30]}  Rd2 {[%clk 0:00:31]} 28. Rd1 {[%clk 0:00:28]}  Bxc3 {[%clk 0:00:26]} 29. bxc3 {[%clk 0:00:28]}  Rxa2 {[%clk 0:00:26]} 30. h4 {[%clk 0:00:19]}  h5 {[%clk 0:00:23]} 31. Rc1 {[%clk 0:00:12]}  a5 {[%clk 0:00:16]} 32. c4 {[%clk 0:00:09]}  a4 {[%clk 0:00:11]} 33. c5 {[%clk 0:00:09]}  a3 {[%clk 0:00:09]} 34. c6 {[%clk 0:00:09]}  Rc2 {[%clk 0:00:08]} 35. Ra1 {[%clk 0:00:04]}  a2 {[%clk 0:00:09]} 36. Bd5 {[%clk 0:00:03]}  Rc5 {[%clk 0:00:06]} 37. Bxa2 {[%clk 0:00:01]}  Rxc6 {[%clk 0:00:06]} 38. Bd5 {[%clk 0:00:01]}  Rd6 {[%clk 0:00:06]} 39. Ra8+ {[%clk 0:00:01]}  Kg7 {[%clk 0:00:06]} 40. Ra7+ {[%clk 0:00:02]}  Kf6 {[%clk 0:00:06]} 41. Bf3 {[%clk 0:00:02]}  Rd4 {[%clk 0:00:06]} 42. g3 {[%clk 0:00:02]}  Rd2 {[%clk 0:00:07]} 43. Ra6+ {[%clk 0:00:02]}  Ke5 {[%clk 0:00:07]} 44. Ra4 {[%clk 0:00:02]}  Rf2 {[%clk 0:00:05]} 45. Bg2 {[%clk 0:00:02]}  Rb2 {[%clk 0:00:04]} 46. Kg1 {[%clk 0:00:02]}  Bg4 {[%clk 0:00:04]} 47. Ra5+ {[%clk 0:00:02]}  Kf6 {[%clk 0:00:04]} 48. Ra6+ {[%clk 0:00:02]}  Kg7 {[%clk 0:00:03]} 49. Ra3 {[%clk 0:00:02]}  Bf5 {[%clk 0:00:03]} 50. Bf3 {[%clk 0:00:02]}  Rb1+ {[%clk 0:00:03]} 51. Kf2 {[%clk 0:00:02]}  Rb2+ {[%clk 0:00:04]} 52. Ke3 {[%clk 0:00:02]}  Kf6 {[%clk 0:00:04]} 53. Ra6+ {[%clk 0:00:02]}  Ke5 {[%clk 0:00:05]} 54. Ra3 {[%clk 0:00:03]}  Rb1 {[%clk 0:00:05]} 55. Ra5+ {[%clk 0:00:03]}  Kd6 {[%clk 0:00:05]} 56. Ra4 {[%clk 0:00:02]}  Rb3+ {[%clk 0:00:05]} 57. Kf4 {[%clk 0:00:02]}  Rc3 {[%clk 0:00:05]} 58. Bxh5 {[%clk 0:00:02]}  gxh5 {[%clk 0:00:03]} 59. Kxf5 {[%clk 0:00:02]}  Rxg3 {[%clk 0:00:04]} 60. Ra6+ {[%clk 0:00:03]}  Kd5 {[%clk 0:00:04]} 61. Rh6 {[%clk 0:00:03]}  Rf3+ {[%clk 0:00:03]} 62. Kg5 {[%clk 0:00:01]}  Ke5 {[%clk 0:00:02]} 0-1


[Site "https://www.chess.com"]

[Event "Titled Tuesday Blitz August 17 2021"]
[White "Tregubov, Pavel V."]
[Black "Yeletsky, Ivan"]
[WhiteFideId "4115341"]
[BlackFideId "24180327"]
[WhiteElo "2423"]
[BlackElo "2344"]
[Result "0-1"]
[Round "07"]
[TimeControl "180+1"]
[Date "2021.08.17"]
[WhiteClock "0:00:07"]
[BlackClock "0:00:06"]

1. e4 {[%clk 0:03:00]}  e6 {[%clk 0:02:58]} 2. d4 {[%clk 0:03:00]}  d5 {[%clk 0:02:59]} 3. exd5 {[%clk 0:03:00]}  exd5 {[%clk 0:02:59]} 4. Nf3 {[%clk 0:03:01]}  Nf6 {[%clk 0:02:59]} 5. Bd3 {[%clk 0:03:01]}  c5 {[%clk 0:02:59]} 6. O-O {[%clk 0:02:59]}  c4 {[%clk 0:02:59]} 7. Re1+ {[%clk 0:02:59]}  Be7 {[%clk 0:03:00]} 8. Bf1 {[%clk 0:02:59]}  O-O {[%clk 0:03:00]} 9. b3 {[%clk 0:02:59]}  cxb3 {[%clk 0:03:01]} 10. axb3 {[%clk 0:02:59]}  Nc6 {[%clk 0:03:02]} 11. h3 {[%clk 0:02:56]}  Bf5 {[%clk 0:03:00]} 12. Bd3 {[%clk 0:02:46]}  Ne4 {[%clk 0:02:59]} 13. Bb2 {[%clk 0:02:24]}  Re8 {[%clk 0:02:59]} 14. Nbd2 {[%clk 0:02:20]}  Bb4 {[%clk 0:02:58]} 15. Re2 {[%clk 0:02:16]}  Nxd2 {[%clk 0:02:44]} 16. Rxe8+ {[%clk 0:02:05]}  Qxe8 {[%clk 0:02:45]} 17. Bxf5 {[%clk 0:02:05]}  Ne4 {[%clk 0:02:45]} 18. Ne5 {[%clk 0:02:00]}  Ne7 {[%clk 0:02:19]} 19. Bxe4 {[%clk 0:01:46]}  dxe4 {[%clk 0:02:17]} 20. c4 {[%clk 0:01:46]}  Bd6 {[%clk 0:02:14]} 21. Ng4 {[%clk 0:01:43]}  b6 {[%clk 0:02:00]} 22. d5 {[%clk 0:01:43]}  Ng6 {[%clk 0:01:54]} 23. Qd4 {[%clk 0:01:39]}  f6 {[%clk 0:01:45]} 24. Re1 {[%clk 0:01:37]}  Bc5 {[%clk 0:01:45]} 25. Nxf6+ {[%clk 0:01:18]}  gxf6 {[%clk 0:01:45]} 26. Qxf6 {[%clk 0:01:19]}  Qf7 {[%clk 0:01:38]} 27. Qxf7+ {[%clk 0:01:18]}  Kxf7 {[%clk 0:01:38]} 28. Rxe4 {[%clk 0:01:17]}  a5 {[%clk 0:01:39]} 29. g3 {[%clk 0:00:58]}  a4 {[%clk 0:01:36]} 30. bxa4 {[%clk 0:00:56]}  Rxa4 {[%clk 0:01:37]} 31. Kg2 {[%clk 0:00:51]}  b5 {[%clk 0:01:30]} 32. h4 {[%clk 0:00:47]}  Rxc4 {[%clk 0:01:29]} 33. Re2 {[%clk 0:00:44]}  Ne7 {[%clk 0:01:28]} 34. Rd2 {[%clk 0:00:38]}  Nf5 {[%clk 0:01:29]} 35. Be5 {[%clk 0:00:36]}  Bd6 {[%clk 0:01:27]} 36. Ba1 {[%clk 0:00:32]}  Ra4 {[%clk 0:01:26]} 37. Bb2 {[%clk 0:00:30]}  Ra2 {[%clk 0:01:26]} 38. h5 {[%clk 0:00:23]}  Be5 {[%clk 0:01:24]} 39. Bc1 {[%clk 0:00:23]}  Rxd2 {[%clk 0:01:24]} 40. Bxd2 {[%clk 0:00:24]}  Nd6 {[%clk 0:01:19]} 41. Kf3 {[%clk 0:00:23]}  Nc4 {[%clk 0:01:19]} 42. Be1 {[%clk 0:00:22]}  Bd6 {[%clk 0:01:13]} 43. Ke4 {[%clk 0:00:22]}  b4 {[%clk 0:01:07]} 44. Kd4 {[%clk 0:00:21]}  b3 {[%clk 0:01:07]} 45. Kc3 {[%clk 0:00:19]}  b2 {[%clk 0:01:08]} 46. Kc2 {[%clk 0:00:19]}  Be5 {[%clk 0:01:08]} 47. Bb4 {[%clk 0:00:18]}  Bd4 {[%clk 0:01:07]} 48. f4 {[%clk 0:00:18]}  Be3 {[%clk 0:00:58]} 49. f5 {[%clk 0:00:17]}  Bc1 {[%clk 0:00:52]} 50. g4 {[%clk 0:00:15]}  Kf6 {[%clk 0:00:52]} 51. d6 {[%clk 0:00:14]}  Nb6 {[%clk 0:00:29]} 52. Bc3+ {[%clk 0:00:12]}  Kg5 {[%clk 0:00:30]} 53. f6 {[%clk 0:00:09]}  Nd7 {[%clk 0:00:29]} 54. f7 {[%clk 0:00:09]}  Bf4 {[%clk 0:00:24]} 55. Bxb2 {[%clk 0:00:05]}  Bxd6 {[%clk 0:00:24]} 56. Kd3 {[%clk 0:00:06]}  Kxg4 {[%clk 0:00:23]} 57. h6 {[%clk 0:00:07]}  Kh5 {[%clk 0:00:23]} 58. Bg7 {[%clk 0:00:07]}  Kg6 {[%clk 0:00:23]} 59. Ke4 {[%clk 0:00:07]}  Kxf7 {[%clk 0:00:23]} 60. Kf5 {[%clk 0:00:07]}  Bf8 {[%clk 0:00:22]} 61. Bb2 {[%clk 0:00:08]}  Bxh6 {[%clk 0:00:21]} 62. Bc3 {[%clk 0:00:07]}  Bg7 {[%clk 0:00:22]} 63. Bd2 {[%clk 0:00:07]}  Nf8 {[%clk 0:00:22]} 64. Be3 {[%clk 0:00:07]}  Ne6 {[%clk 0:00:23]} 65. Bc1 {[%clk 0:00:07]}  Bf6 {[%clk 0:00:23]} 66. Bd2 {[%clk 0:00:07]}  Ng7+ {[%clk 0:00:24]} 67. Kg4 {[%clk 0:00:06]}  Kg6 {[%clk 0:00:25]} 68. Be3 {[%clk 0:00:06]}  h5+ {[%clk 0:00:26]} 69. Kh3 {[%clk 0:00:06]}  Nf5 {[%clk 0:00:27]} 70. Bf4 {[%clk 0:00:06]}  Bg5 {[%clk 0:00:25]} 71. Be5 {[%clk 0:00:06]}  Nh6 {[%clk 0:00:26]} 72. Bd6 {[%clk 0:00:05]}  Ng4 {[%clk 0:00:26]} 73. Bc5 {[%clk 0:00:05]}  Kf5 {[%clk 0:00:26]} 74. Bd4 {[%clk 0:00:05]}  Bf6 {[%clk 0:00:26]} 75. Bg1 {[%clk 0:00:05]}  Ne5 {[%clk 0:00:25]} 76. Bf2 {[%clk 0:00:05]}  Ng6 {[%clk 0:00:25]} 77. Be1 {[%clk 0:00:05]}  Nf4+ {[%clk 0:00:25]} 78. Kh2 {[%clk 0:00:05]}  Kg4 {[%clk 0:00:24]} 79. Bf2 {[%clk 0:00:04]}  Be5 {[%clk 0:00:23]} 80. Kh1 {[%clk 0:00:05]}  Nd3 {[%clk 0:00:23]} 81. Be3 {[%clk 0:00:04]}  h4 {[%clk 0:00:23]} 82. Bb6 {[%clk 0:00:04]}  h3 {[%clk 0:00:24]} 83. Bg1 {[%clk 0:00:03]}  Bg3 {[%clk 0:00:22]} 84. Bd4 {[%clk 0:00:03]}  Nf4 {[%clk 0:00:21]} 85. Bc5 {[%clk 0:00:02]}  Ne2 {[%clk 0:00:21]} 86. Bb6 {[%clk 0:00:02]}  Kf3 {[%clk 0:00:19]} 87. Ba7 {[%clk 0:00:02]}  Bf2 {[%clk 0:00:19]} 88. Bb8 {[%clk 0:00:03]}  Kg4 {[%clk 0:00:18]} 89. Bc7 {[%clk 0:00:02]}  Bg3 {[%clk 0:00:14]} 90. Bb6 {[%clk 0:00:02]}  Bf4 {[%clk 0:00:14]} 91. Ba7 {[%clk 0:00:02]}  Ng3+ {[%clk 0:00:14]} 92. Kh2 {[%clk 0:00:03]}  Nh5+ {[%clk 0:00:05]} 93. Kh1 {[%clk 0:00:03]}  Ng7 {[%clk 0:00:06]} 94. Bb6 {[%clk 0:00:03]}  Ne6 {[%clk 0:00:06]} 95. Ba7 {[%clk 0:00:03]}  Ng5 {[%clk 0:00:04]} 96. Bb6 {[%clk 0:00:03]}  Ne4 {[%clk 0:00:04]} 97. Bd4 {[%clk 0:00:02]}  Ng5 {[%clk 0:00:03]} 98. Bb6 {[%clk 0:00:02]}  Nf3 {[%clk 0:00:03]} 99. Ba7 {[%clk 0:00:02]}  h2 {[%clk 0:00:04]} 100. Bb6 {[%clk 0:00:01]}  Kh3 {[%clk 0:00:03]} 101. Ba7 {[%clk 0:00:01]}  Nh4 {[%clk 0:00:04]} 102. Bf2 {[%clk 0:00:01]}  Nf5 {[%clk 0:00:04]} 103. Be1 {[%clk 0:00:01]}  Bd2 {[%clk 0:00:04]} 104. Bf2 {[%clk 0:00:01]}  Be3 {[%clk 0:00:04]} 105. Bh4 {[%clk 0:00:01]}  Kxh4 {[%clk 0:00:03]} 106. Kxh2 {[%clk 0:00:01]}  Kg4 {[%clk 0:00:04]} 107. Kg2 {[%clk 0:00:02]}  Kf4 {[%clk 0:00:05]} 108. Kh1 {[%clk 0:00:02]}  Kf3 {[%clk 0:00:05]} 109. Kh2 {[%clk 0:00:02]}  Ng3 {[%clk 0:00:06]} 110. Kh3 {[%clk 0:00:01]}  Bg1 {[%clk 0:00:07]} 111. Kh4 {[%clk 0:00:01]}  Bd4 {[%clk 0:00:07]} 112. Kh3 {[%clk 0:00:02]}  Ne2 {[%clk 0:00:05]} 113. Kh2 {[%clk 0:00:02]}  Ng3 {[%clk 0:00:03]} 114. Kh3 {[%clk 0:00:02]}  Bg1 {[%clk 0:00:02]} 115. Kh4 {[%clk 0:00:03]}  Ne4 {[%clk 0:00:01]} 116. Kh3 {[%clk 0:00:03]}  Ng5+ {[%clk 0:00:01]} 117. Kh4 {[%clk 0:00:03]}  Kf4 {[%clk 0:00:02]} 118. Kh5 {[%clk 0:00:03]}  Kf5 {[%clk 0:00:03]} 119. Kh4 {[%clk 0:00:03]}  Bf2+ {[%clk 0:00:03]} 120. Kh5 {[%clk 0:00:04]}  Ne6 {[%clk 0:00:03]} 121. Kh6 {[%clk 0:00:03]}  Kf6 {[%clk 0:00:04]} 122. Kh5 {[%clk 0:00:04]}  Kf5 {[%clk 0:00:04]} 123. Kh6 {[%clk 0:00:04]}  Bh4 {[%clk 0:00:04]} 124. Kh5 {[%clk 0:00:04]}  Be7 {[%clk 0:00:05]} 125. Kh6 {[%clk 0:00:04]}  Kf6 {[%clk 0:00:05]} 126. Kh5 {[%clk 0:00:05]}  Kf5 {[%clk 0:00:04]} 127. Kh6 {[%clk 0:00:05]}  Ng5 {[%clk 0:00:04]} 128. Kh5 {[%clk 0:00:05]}  Bc5 {[%clk 0:00:05]} 129. Kh4 {[%clk 0:00:05]}  Bf2+ {[%clk 0:00:05]} 130. Kh5 {[%clk 0:00:06]}  Be1 {[%clk 0:00:05]} 131. Kh6 {[%clk 0:00:06]}  Ne6 {[%clk 0:00:05]} 132. Kh5 {[%clk 0:00:06]}  Ng7+ {[%clk 0:00:05]} 133. Kh6 {[%clk 0:00:06]}  Kf6 {[%clk 0:00:06]} 134. Kh7 {[%clk 0:00:06]}  Kf7 {[%clk 0:00:07]} 135. Kh6 {[%clk 0:00:06]}  Bd2+ {[%clk 0:00:07]} 136. Kh7 {[%clk 0:00:07]}  Ne8 {[%clk 0:00:06]} 137. Kh8 {[%clk 0:00:06]}  Bh6 {[%clk 0:00:06]} 138. Kh7 {[%clk 0:00:07]}  Bf8 {[%clk 0:00:06]} 0-1


[Site "https://www.chess.com"]

[Event "Titled Tuesday Blitz August 17 2021"]
[White "Urazayev, Arystanbek"]
[Black "Grachev, Boris"]
[WhiteFideId "13709810"]
[BlackFideId "4129199"]
[WhiteElo "2321"]
[BlackElo "2580"]
[Result "1/2-1/2"]
[Round "07"]
[TimeControl "180+1"]
[Date "2021.08.17"]
[WhiteClock "0:02:11"]
[BlackClock "0:01:07"]

1. e4 {[%clk 0:03:00]}  c5 {[%clk 0:02:59]} 2. Nf3 {[%clk 0:03:01]}  e6 {[%clk 0:02:59]} 3. c3 {[%clk 0:03:01]}  d5 {[%clk 0:02:59]} 4. exd5 {[%clk 0:03:02]}  exd5 {[%clk 0:02:59]} 5. Bb5+ {[%clk 0:03:02]}  Bd7 {[%clk 0:02:59]} 6. Bxd7+ {[%clk 0:03:02]}  Nxd7 {[%clk 0:02:58]} 7. O-O {[%clk 0:03:02]}  Bd6 {[%clk 0:02:58]} 8. d4 {[%clk 0:03:01]}  Ne7 {[%clk 0:02:58]} 9. dxc5 {[%clk 0:03:00]}  Nxc5 {[%clk 0:02:59]} 10. Nbd2 {[%clk 0:03:00]}  O-O {[%clk 0:02:57]} 11. Nb3 {[%clk 0:03:00]}  Ne4 {[%clk 0:02:56]} 12. Be3 {[%clk 0:03:00]}  a5 {[%clk 0:02:34]} 13. a4 {[%clk 0:02:59]}  Nf5 {[%clk 0:02:34]} 14. Re1 {[%clk 0:02:59]}  Re8 {[%clk 0:02:27]} 15. Nbd4 {[%clk 0:02:55]}  Nxe3 {[%clk 0:02:24]} 16. Rxe3 {[%clk 0:02:56]}  Bc5 {[%clk 0:02:23]} 17. Qb3 {[%clk 0:02:47]}  Qb6 {[%clk 0:02:07]} 18. Qxb6 {[%clk 0:02:46]}  Bxb6 {[%clk 0:02:07]} 19. Rae1 {[%clk 0:02:41]}  Kf8 {[%clk 0:02:05]} 20. R3e2 {[%clk 0:02:39]}  Bxd4 {[%clk 0:01:36]} 21. Nxd4 {[%clk 0:02:29]}  Nc5 {[%clk 0:01:36]} 22. Rxe8+ {[%clk 0:02:19]}  Rxe8 {[%clk 0:01:35]} 23. Rxe8+ {[%clk 0:02:19]}  Kxe8 {[%clk 0:01:35]} 24. b3 {[%clk 0:02:20]}  Ne4 {[%clk 0:01:31]} 25. Nb5 {[%clk 0:02:21]}  Kd7 {[%clk 0:01:19]} 26. f3 {[%clk 0:02:21]}  Nc5 {[%clk 0:01:19]} 27. Nd4 {[%clk 0:02:21]}  Ne6 {[%clk 0:01:13]} 28. Nc2 {[%clk 0:02:10]}  Nc5 {[%clk 0:01:07]} 29. Nd4 {[%clk 0:02:09]}  Ne6 {[%clk 0:01:07]} 30. Nc2 {[%clk 0:02:10]}  Nc5 {[%clk 0:01:07]} 31. Nd4 {[%clk 0:02:11]} 1/2-1/2


[Site "https://www.chess.com"]

[Event "Titled Tuesday Blitz August 17 2021"]
[White "Vlassov, Nikolai"]
[Black "Kanyamarala, Trisha"]
[WhiteFideId "4103360"]
[BlackFideId "45004722"]
[WhiteElo "2407"]
[BlackElo "2074"]
[Result "1-0"]
[Round "07"]
[TimeControl "180+1"]
[Date "2021.08.17"]
[WhiteClock "0:01:43"]
[BlackClock "0:01:23"]

1. e4 {[%clk 0:02:55]}  c5 {[%clk 0:02:59]} 2. c3 {[%clk 0:02:54]}  Nf6 {[%clk 0:02:54]} 3. e5 {[%clk 0:02:54]}  Nd5 {[%clk 0:02:55]} 4. d4 {[%clk 0:02:54]}  cxd4 {[%clk 0:02:55]} 5. cxd4 {[%clk 0:02:54]}  d6 {[%clk 0:02:54]} 6. Bc4 {[%clk 0:02:54]}  e6 {[%clk 0:02:52]} 7. Nf3 {[%clk 0:02:53]}  Nc6 {[%clk 0:02:51]} 8. O-O {[%clk 0:02:53]}  Be7 {[%clk 0:02:50]} 9. Qe2 {[%clk 0:02:54]}  O-O {[%clk 0:02:50]} 10. Qe4 {[%clk 0:02:54]}  Na5 {[%clk 0:02:29]} 11. Bd3 {[%clk 0:02:53]}  f5 {[%clk 0:02:28]} 12. exf6 {[%clk 0:02:53]}  Nxf6 {[%clk 0:02:28]} 13. Qh4 {[%clk 0:02:44]}  Nc6 {[%clk 0:02:20]} 14. Nc3 {[%clk 0:02:44]}  Nb4 {[%clk 0:02:12]} 15. Bb1 {[%clk 0:02:44]}  Bd7 {[%clk 0:02:11]} 16. Bg5 {[%clk 0:02:41]}  g6 {[%clk 0:02:05]} 17. Re1 {[%clk 0:02:25]}  Nfd5 {[%clk 0:01:59]} 18. a3 {[%clk 0:02:15]}  Rf4 {[%clk 0:01:33]} 19. Bxe7 {[%clk 0:02:05]}  Qxe7 {[%clk 0:01:31]} 20. Qxe7 {[%clk 0:02:05]}  Nxe7 {[%clk 0:01:32]} 21. axb4 {[%clk 0:02:05]}  h6 {[%clk 0:01:30]} 22. Ba2 {[%clk 0:01:52]}  Kf7 {[%clk 0:01:29]} 23. Ne4 {[%clk 0:01:49]}  Nc8 {[%clk 0:01:23]} 24. Rac1 {[%clk 0:01:43]} 1-0


[Site "https://www.chess.com"]

[Event "Titled Tuesday Blitz August 17 2021"]
[White "Wagner, Dennis"]
[Black "Onyshchuk, Volodymyr"]
[WhiteFideId "24650684"]
[BlackFideId "14114038"]
[WhiteElo "2355"]
[BlackElo "2603"]
[Result "1-0"]
[Round "07"]
[TimeControl "180+1"]
[Date "2021.08.17"]
[WhiteClock "0:00:05"]
[BlackClock "0:00:01"]

1. d4 {[%clk 0:03:00]}  d6 {[%clk 0:02:55]} 2. e4 {[%clk 0:02:59]}  Nf6 {[%clk 0:02:55]} 3. Nc3 {[%clk 0:02:59]}  g6 {[%clk 0:02:55]} 4. Be3 {[%clk 0:02:59]}  c6 {[%clk 0:02:54]} 5. Qd2 {[%clk 0:02:59]}  Nbd7 {[%clk 0:02:50]} 6. h3 {[%clk 0:02:55]}  Qa5 {[%clk 0:02:49]} 7. Bd3 {[%clk 0:02:51]}  e5 {[%clk 0:02:48]} 8. Nf3 {[%clk 0:02:51]}  Bg7 {[%clk 0:02:46]} 9. O-O {[%clk 0:02:49]}  Qd8 {[%clk 0:02:43]} 10. Bh6 {[%clk 0:02:45]}  O-O {[%clk 0:02:40]} 11. Rad1 {[%clk 0:02:41]}  Qe7 {[%clk 0:02:36]} 12. Rfe1 {[%clk 0:02:41]}  Re8 {[%clk 0:02:33]} 13. Bxg7 {[%clk 0:02:37]}  Kxg7 {[%clk 0:02:33]} 14. Ne2 {[%clk 0:02:38]}  h6 {[%clk 0:02:32]} 15. Ng3 {[%clk 0:02:38]}  Nf8 {[%clk 0:02:25]} 16. Bc4 {[%clk 0:02:26]}  N6h7 {[%clk 0:02:17]} 17. dxe5 {[%clk 0:01:58]}  dxe5 {[%clk 0:02:16]} 18. Qd6 {[%clk 0:01:59]}  Qxd6 {[%clk 0:02:10]} 19. Rxd6 {[%clk 0:01:59]}  Ng5 {[%clk 0:02:10]} 20. Nxg5 {[%clk 0:01:56]}  hxg5 {[%clk 0:02:10]} 21. Nf1 {[%clk 0:01:51]}  Be6 {[%clk 0:02:04]} 22. Ne3 {[%clk 0:01:50]}  Rad8 {[%clk 0:02:03]} 23. Red1 {[%clk 0:01:51]}  Rxd6 {[%clk 0:02:01]} 24. Rxd6 {[%clk 0:01:52]}  Bc8 {[%clk 0:01:59]} 25. a4 {[%clk 0:01:45]}  Nd7 {[%clk 0:01:55]} 26. a5 {[%clk 0:01:42]}  Kf8 {[%clk 0:01:39]} 27. b4 {[%clk 0:01:42]}  Ke7 {[%clk 0:01:38]} 28. Rd2 {[%clk 0:01:42]}  Nf8 {[%clk 0:01:35]} 29. f3 {[%clk 0:01:34]}  f6 {[%clk 0:01:24]} 30. Kf2 {[%clk 0:01:32]}  Ne6 {[%clk 0:01:22]} 31. Bxe6 {[%clk 0:01:30]}  Bxe6 {[%clk 0:01:22]} 32. Ng4 {[%clk 0:01:26]}  c5 {[%clk 0:01:14]} 33. c3 {[%clk 0:01:24]}  cxb4 {[%clk 0:01:13]} 34. cxb4 {[%clk 0:01:25]}  Rc8 {[%clk 0:01:13]} 35. Ne3 {[%clk 0:01:24]}  Rc1 {[%clk 0:01:06]} 36. Rc2 {[%clk 0:01:24]}  Rxc2+ {[%clk 0:01:03]} 37. Nxc2 {[%clk 0:01:25]}  Kd6 {[%clk 0:01:03]} 38. Ke3 {[%clk 0:01:13]}  f5 {[%clk 0:00:55]} 39. Na3 {[%clk 0:00:58]}  Kc6 {[%clk 0:00:53]} 40. g4 {[%clk 0:00:52]}  f4+ {[%clk 0:00:49]} 41. Kd2 {[%clk 0:00:50]}  Bb3 {[%clk 0:00:46]} 42. Ke2 {[%clk 0:00:43]}  b6 {[%clk 0:00:45]} 43. axb6 {[%clk 0:00:41]}  Kxb6 {[%clk 0:00:44]} 44. Kd2 {[%clk 0:00:39]}  Kc6 {[%clk 0:00:35]} 45. Ke2 {[%clk 0:00:39]}  a6 {[%clk 0:00:35]} 46. Kd2 {[%clk 0:00:39]}  Be6 {[%clk 0:00:23]} 47. Ke2 {[%clk 0:00:38]}  Kb6 {[%clk 0:00:22]} 48. Kd2 {[%clk 0:00:39]}  Bb3 {[%clk 0:00:20]} 49. Ke2 {[%clk 0:00:39]}  a5 {[%clk 0:00:20]} 50. bxa5+ {[%clk 0:00:38]}  Kxa5 {[%clk 0:00:20]} 51. Nb1 {[%clk 0:00:38]}  Kb4 {[%clk 0:00:19]} 52. Kd2 {[%clk 0:00:31]}  Bc4 {[%clk 0:00:17]} 53. Nc3 {[%clk 0:00:28]}  Kc5 {[%clk 0:00:16]} 54. Na4+ {[%clk 0:00:09]}  Kd4 {[%clk 0:00:16]} 55. Nb6 {[%clk 0:00:07]}  Be6 {[%clk 0:00:15]} 56. Na4 {[%clk 0:00:06]}  Bd7 {[%clk 0:00:14]} 57. Nc3 {[%clk 0:00:05]}  Bc6 {[%clk 0:00:14]} 58. Ne2+ {[%clk 0:00:05]}  Kc4 {[%clk 0:00:14]} 59. Nc1 {[%clk 0:00:06]}  Bb5 {[%clk 0:00:12]} 60. Nd3 {[%clk 0:00:05]}  Kd4 {[%clk 0:00:13]} 61. Nb4 {[%clk 0:00:05]}  Kc5 {[%clk 0:00:09]} 62. Nd5 {[%clk 0:00:05]}  Bf1 {[%clk 0:00:06]} 63. Ne7 {[%clk 0:00:05]}  Kd6 {[%clk 0:00:03]} 64. Nxg6 {[%clk 0:00:05]}  Bc4 {[%clk 0:00:02]} 65. h4 {[%clk 0:00:05]}  Bf7 {[%clk 0:00:01]} 66. h5 {[%clk 0:00:05]} 1-0


[Site "https://www.chess.com"]

[Event "Titled Tuesday Blitz August 17 2021"]
[White "Woodward, Andy"]
[Black "Przybylski, Wojciech"]
[WhiteFideId "30953499"]
[BlackFideId "1117599"]
[WhiteElo "2137"]
[BlackElo "2250"]
[Result "0-1"]
[Round "07"]
[TimeControl "180+1"]
[Date "2021.08.17"]
[WhiteClock "0:00:23"]
[BlackClock "0:01:11"]

1. d4 {[%clk 0:03:00]}  Nf6 {[%clk 0:02:58]} 2. c4 {[%clk 0:03:01]}  e6 {[%clk 0:02:57]} 3. Nc3 {[%clk 0:03:02]}  Bb4 {[%clk 0:02:56]} 4. Qc2 {[%clk 0:03:01]}  d6 {[%clk 0:02:56]} 5. Nf3 {[%clk 0:02:54]}  O-O {[%clk 0:02:55]} 6. Bd2 {[%clk 0:02:54]}  Nbd7 {[%clk 0:02:54]} 7. a3 {[%clk 0:02:54]}  Bxc3 {[%clk 0:02:54]} 8. Bxc3 {[%clk 0:02:55]}  d5 {[%clk 0:02:52]} 9. e3 {[%clk 0:02:54]}  Ne4 {[%clk 0:02:51]} 10. Bd3 {[%clk 0:02:54]}  f5 {[%clk 0:02:50]} 11. O-O {[%clk 0:02:51]}  b6 {[%clk 0:02:48]} 12. cxd5 {[%clk 0:02:48]}  exd5 {[%clk 0:02:47]} 13. Bb4 {[%clk 0:02:42]}  c5 {[%clk 0:02:45]} 14. dxc5 {[%clk 0:02:31]}  bxc5 {[%clk 0:02:43]} 15. Bc3 {[%clk 0:02:08]}  Bb7 {[%clk 0:02:42]} 16. Rad1 {[%clk 0:01:49]}  Qe7 {[%clk 0:02:39]} 17. Bb5 {[%clk 0:01:29]}  Ndf6 {[%clk 0:02:36]} 18. Be5 {[%clk 0:01:25]}  c4 {[%clk 0:02:28]} 19. b3 {[%clk 0:01:15]}  a6 {[%clk 0:02:24]} 20. Ba4 {[%clk 0:01:15]}  Rac8 {[%clk 0:02:23]} 21. bxc4 {[%clk 0:01:03]}  Rxc4 {[%clk 0:02:21]} 22. Qb3 {[%clk 0:00:58]}  Nc5 {[%clk 0:02:21]} 23. Qb6 {[%clk 0:00:50]}  Nxa4 {[%clk 0:02:20]} 24. Qa7 {[%clk 0:00:50]}  Ra8 {[%clk 0:02:15]} 25. Bxf6 {[%clk 0:00:47]}  gxf6 {[%clk 0:02:12]} 26. Qd4 {[%clk 0:00:46]}  Rxd4 {[%clk 0:02:10]} 27. Rxd4 {[%clk 0:00:47]}  Nc3 {[%clk 0:02:08]} 28. Re1 {[%clk 0:00:44]}  Ne4 {[%clk 0:02:02]} 29. g3 {[%clk 0:00:43]}  Qxa3 {[%clk 0:01:58]} 30. Nh4 {[%clk 0:00:42]}  Qb2 {[%clk 0:01:54]} 31. Rf1 {[%clk 0:00:42]}  Nc3 {[%clk 0:01:42]} 32. Kg2 {[%clk 0:00:41]}  Qc2 {[%clk 0:01:41]} 33. Kh3 {[%clk 0:00:33]}  Ne4 {[%clk 0:01:37]} 34. Kg2 {[%clk 0:00:31]}  Nd6 {[%clk 0:01:33]} 35. Ra1 {[%clk 0:00:29]}  Nb5 {[%clk 0:01:30]} 36. Rf4 {[%clk 0:00:25]}  d4+ {[%clk 0:01:29]} 37. Kh3 {[%clk 0:00:25]}  dxe3 {[%clk 0:01:27]} 38. fxe3 {[%clk 0:00:26]}  Kf7 {[%clk 0:01:23]} 39. Raf1 {[%clk 0:00:24]}  Nd6 {[%clk 0:01:20]} 40. R1f2 {[%clk 0:00:23]}  Qd1 {[%clk 0:01:15]} 41. g4 {[%clk 0:00:22]}  fxg4+ {[%clk 0:01:11]} 42. Rxg4 {[%clk 0:00:23]}  Bc8 {[%clk 0:01:11]} 0-1


[Site "https://www.chess.com"]